fUSD/lending_fUSD_20250216
["ID","MTS","AMOUNT","RATE_DAILY","PERIOD"]
[353223719,1739675436783,-500.0,0.00010958,2]
[353223720,1739675436792,-500.0,0.00010958,2]
[353223721,1739675436801,-1081.91,0.00010958,2]
[353223722,1739675436811,-500.0,0.00010958,2]
[353223723,1739675436820,-500.0,0.00010958,2]
[353223724,1739675436829,-500.0,0.00010958,2]
[353223725,1739675436838,-500.0,0.00010958,2]
[353223726,1739675436847,-535.14,0.00010958,2]
[353223727,1739675436857,-500.0,0.00010958,2]
[353223728,1739675436866,-873.61,0.00010958,2]
[353223729,1739675436875,-1729.87,0.00010958,2]
[353223730,1739675436884,-3262.79,0.00010958,2]
[353223731,1739675436894,-1494.27,0.00010958,2]
[353223732,1739675436903,-731.21,0.00010958,2]
[353223733,1739675436912,-455.76361927,0.00010958,2]
[353223734,1739675436922,-748.15,0.00010958,2]
[353223735,1739675436931,-500.0,0.00010958,2]
[353223736,1739675436941,-1609.3,0.00010958,2]
[353223737,1739675436950,-1115.23,0.00010958,2]
[353223738,1739675436960,-500.0,0.00010958,2]
[353223739,1739675436970,-725.99,0.00010958,2]
[353223740,1739675436979,-500.0,0.00010958,2]
[353223741,1739675436988,-500.0,0.00010958,2]
[353223742,1739675436998,-1269.09,0.00010958,2]
[353223743,1739675437008,-1135.48,0.00010958,2]
[353223744,1739675437018,-523.5,0.00010958,2]
[353223745,1739675437027,-500.0,0.00010958,2]
[353223746,1739675437036,-500.0,0.00010958,2]
[353223747,1739675437046,-558.99,0.00010958,2]
[353223748,1739675437055,-363.63007368,0.00010958,2]
[353223749,1739675437064,-1272.69,0.00010958,2]
[353223750,1739675437074,-1159.63,0.00010958,2]
[353223751,1739675437082,-500.0,0.00010958,2]
[353223752,1739675437092,-598.55,0.00010958,2]
[353223753,1739675437101,-1102.77,0.00010958,2]
[353223754,1739675437110,-500.0,0.00010958,2]
[353223755,1739675437120,-1086.65,0.00010958,2]
[353223756,1739675437130,-1083.89,0.00010958,2]
[353223757,1739675437139,-899.75,0.00010958,2]
[353223758,1739675437149,-3538.58,0.00010958,2]
[353223759,1739675437158,-500.0,0.00010958,2]
[353223761,1739675437168,-553.67,0.00010958,2]
[353223763,1739675437178,-500.0,0.00010958,2]
[353223765,1739675437187,-1497.33,0.00010958,2]
[353223767,1739675437196,-1285.59,0.00010958,2]
[353223769,1739675437206,-840.7,0.00010958,2]
[353223771,1739675437215,-1145.43,0.00010958,2]
[353223773,1739675437224,-1103.2,0.00010958,2]
[353223775,1739675437234,-2919.34,0.00010958,2]
[353223776,1739675437243,-801.11,0.00010958,2]
[353223777,1739675437253,-500.0,0.00010958,2]
[353223778,1739675437262,-500.0,0.00010958,2]
[353223779,1739675437272,-708.91,0.00010958,2]
[353223781,1739675437283,-5439.36,0.00010958,2]
[353223783,1739675437293,-561.63,0.00010958,2]
[353223785,1739675437302,-500.0,0.00010958,2]
[353223787,1739675437311,-1330.56,0.00010958,2]
[353223789,1739675437321,-500.0,0.00010958,2]
[353223792,1739675437330,-500.0,0.00010958,2]
[353223794,1739675437340,-996.85,0.00010958,2]
[353223796,1739675437350,-508.10663584,0.00010958,2]
[353223798,1739675437359,-500.0,0.00010958,2]
[353223800,1739675437369,-1678.8,0.00010958,2]
[353223801,1739675437379,-1242.54,0.00010958,2]
[353223803,1739675437388,-1928.54,0.00010958,2]
[353223805,1739675437397,-1489.93,0.00010958,2]
[353223807,1739675437407,-195.03999071,0.00010958,2]
[353223809,1739675437416,-1685.23,0.00010958,2]
[353223811,1739675437425,-500.0,0.00010958,2]
[353223813,1739675437434,-1196.83,0.00010958,2]
[353223815,1739675437444,-500.0,0.00010958,2]
[353223817,1739675437453,-617.96,0.00010958,2]
[353223819,1739675437463,-621.03,0.00010958,2]
[353223821,1739675437472,-854.4,0.00010958,2]
[353223823,1739675437482,-3363.33,0.00010958,2]
[353223825,1739675437492,-500.0,0.00010958,2]
[353223826,1739675437501,-740.18,0.00010958,2]
[353223827,1739675437511,-851.74,0.00010958,2]
[353223828,1739675437521,-580.19,0.00010958,2]
[353223829,1739675437531,-500.0,0.00010958,2]
[353223830,1739675437540,-1233.01,0.00010958,2]
[353223831,1739675437550,-695.86,0.00010958,2]
[353223832,1739675437560,-1167.5,0.00010958,2]
[353223833,1739675437570,-500.0,0.00010958,2]
[353223834,1739675437580,-500.0,0.00010958,2]
[353223835,1739675437589,-500.0,0.00010958,2]
[353223836,1739675437599,-1367.24,0.00010958,2]
[353223837,1739675437609,-500.0,0.00010958,2]
[353223838,1739675437620,-500.0,0.00010958,2]
[353223839,1739675437630,-1191.4,0.00010958,2]
[353223840,1739675437639,-500.0,0.00010958,2]
[353223841,1739675437648,-500.0,0.00010958,2]
[353223842,1739675437658,-500.0,0.00010958,2]
[353223843,1739675437671,-500.0,0.00010958,2]
[353223844,1739675437681,-500.0,0.00010958,2]
[353223845,1739675437691,-676.05,0.00010958,2]
[353223846,1739675437701,-567.02,0.00010958,2]
[353223847,1739675437712,-882.33,0.00010958,2]
[353223848,1739675437721,-1474.22,0.00010958,2]
[353223849,1739675437731,-500.0,0.00010958,2]
[353223850,1739675437742,-500.0,0.00010958,2]
[353223851,1739675437752,-500.0,0.00010958,2]
[353223852,1739675437762,-506.49574457,0.00010958,2]
[353223853,1739675437772,-500.0,0.00010958,2]
[353223854,1739675437782,-646.62,0.00010958,2]
[353223855,1739675437791,-1007.32,0.00010958,2]
[353223856,1739675437801,-1565.43,0.00010958,2]
[353223857,1739675437810,-912.82,0.00010958,2]
[353223858,1739675437819,-500.0,0.00010958,2]
[353223859,1739675437829,-500.0,0.00010958,2]
[353223860,1739675437837,-708.46,0.00010958,2]
[353223861,1739675437847,-536.52,0.00010958,2]
[353223862,1739675437857,-500.0,0.00010958,2]
[353223863,1739675437867,-508.07637813,0.00010958,2]
[353223864,1739675437876,-3232.35,0.00010958,2]
[353223865,1739675437885,-671.19,0.00010958,2]
[353223866,1739675437895,-50982.87400091,0.00010958,2]
[353223867,1739675437904,-150.0,0.00010959,2]
[353223868,1739675437914,-2000.0,0.00010959,2]
[353223869,1739675437924,-200.0,0.00010959,2]
[353223870,1739675437933,-150.0,0.00010959,2]
[353223871,1739675437942,-150.0,0.00010986,2]
[353223872,1739675437953,-516.8045342,0.00010999,2]
[353223873,1739675437963,-174.0,0.00011,2]
[353223874,1739675437973,-40008.0,0.00011,2]
[353223875,1739675437983,-1000.0,0.00011,2]
[353223876,1739675437993,-335.66474175,0.00011012,2]
[353223877,1739675438002,-150.0,0.00011014,2]
[353223878,1739675438012,-150.0,0.00011014,2]
[353223879,1739675438021,-150.0,0.00011014,2]
[353223880,1739675438030,-150.0,0.00011014,2]
[353223881,1739675438040,-150.0,0.00011018,2]
[353223882,1739675438050,-1369.14,0.00011031,2]
[353223883,1739675438059,-1162.41,0.00011031,2]
[353223884,1739675438068,-3606.95,0.00011031,2]
[353223885,1739675438077,-1329.62,0.00011031,2]
[353223886,1739675438086,-711.67,0.00011031,2]
[353223887,1739675438095,-922.19,0.00011031,2]
[353223888,1739675438104,-1622.16,0.00011031,2]
[353223889,1739675438114,-500.0,0.00011031,2]
[353223890,1739675438124,-387.1653255,0.00011031,2]
[353223891,1739675438134,-624.91,0.00011031,2]
[353223892,1739675438144,-1296.12,0.00011031,2]
[353223893,1739675438155,-481.3093638,0.00011031,2]
[353223894,1739675438165,-1869.73,0.00011031,2]
[353223895,1739675438174,-1045.36,0.00011031,2]
[353223896,1739675438183,-1257.08,0.00011031,2]
[353223897,1739675438193,-551.0322699,0.00011031,2]
[353223898,1739675438202,-500.0,0.00011031,2]
[353223899,1739675438211,-908.58,0.00011031,2]
[353223900,1739675438220,-772.09,0.00011031,2]
[353223901,1739675438229,-351.85399431,0.00011031,2]
[353223902,1739675438238,-387.1653255,0.00011032,2]
[353223903,1739675438248,-387.1653255,0.00011032,2]
[353223904,1739675438258,-387.1653255,0.00011032,2]
[353223905,1739675438268,-1377.46,0.00011039,2]
[353223906,1739675438278,-500.0,0.00011039,2]
[353223907,1739675438287,-500.0,0.00011039,2]
[353223908,1739675438296,-500.0,0.00011039,2]
[353223909,1739675438306,-500.0,0.00011039,2]
[353223910,1739675438316,-500.0,0.00011039,2]
[353223911,1739675438326,-500.0,0.00011039,2]
[353223912,1739675438336,-439.12,0.00011039,2]
[353223913,1739675438346,-1532.0,0.00011039,2]
[353223914,1739675438355,-253690.47491038,0.0001104,3]
[353223919,1739675439478,-300.0,0.00010958,2]
[353223920,1739675439788,-1032.6890508,0.00010958,2]
[353224197,1739675442708,-207.26195141,0.0001094,2]
[353224199,1739675442719,-2864.8509492,0.00010958,2]
[353224201,1739675442728,-500.0,0.00010958,2]
[353224203,1739675442739,-2062.08,0.00010958,2]
[353224205,1739675442750,-1113.98,0.00010958,2]
[353224207,1739675442760,-516.78,0.00010958,2]
[353224209,1739675442769,-2064.14906616,0.0001104,2]
[353224211,1739675442779,-61746.6564933,0.0001104,3]
[353224426,1739675821693,191.31,0.0002,120]
[353224496,1739676120777,858.0,0.00016,70]
[353224518,1739676185254,4154.0,0.00016,90]
[353224530,1739676219526,1000.0,0.0002,120]
[353224646,1739676555174,787.46,8.219e-05,2]
[353224693,1739676631619,-1080.77578217,8.851e-05,2]
[353224694,1739676631673,-1419.22421783,8.851e-05,2]
[353224695,1739676631683,-478.31,9.09e-05,2]
[353224696,1739676631692,-2000.0,9.107e-05,2]
[353224697,1739676631701,-20196.69622419,9.127e-05,2]
[353224698,1739676631713,-3703.30377581,9.127e-05,2]
[353224699,1739676631722,-810.28,9.215e-05,2]
[353224700,1739676631732,-1500.0,9.275e-05,2]
[353224701,1739676631741,-200.0,9.276e-05,2]
[353224702,1739676631750,-500.0,9.562e-05,2]
[353224703,1739676631759,-250.0,9.588e-05,2]
[353224704,1739676631769,-2000.0,9.663e-05,2]
[353224705,1739676631778,-161.10100952,9.695e-05,2]
[353224706,1739676631787,-300.0,9.695e-05,2]
[353224707,1739676631797,-300.0,9.735e-05,2]
[353224708,1739676631806,-150.0,9.736e-05,2]
[353224709,1739676631816,-150.0,9.736e-05,2]
[353224710,1739676631825,-200.0,9.736e-05,2]
[353224711,1739676631834,-200.0,9.736e-05,2]
[353224712,1739676631843,-200.0,9.736e-05,2]
[353224713,1739676631853,-170.21,9.742e-05,2]
[353224714,1739676631862,-1000.0,9.787e-05,2]
[353224715,1739676631872,-9636.0,9.8e-05,2]
[353224716,1739676631882,-150.0,9.912e-05,2]
[353224717,1739676631891,-74.53003806,9.912e-05,2]
[353224718,1739676631947,-78.1941688,9.912e-05,2]
[353224719,1739676631959,-196.5097352,9.912e-05,2]
[353224720,1739676631968,-151.87993698,9.912e-05,2]
[353224721,1739676631977,-154.16025672,9.937e-05,2]
[353224722,1739676631987,-150.0,9.998e-05,2]
[353224723,1739676631996,-184.73181266,9.999e-05,2]
[353224727,1739676632032,-315.26818734,9.999e-05,2]
[353224729,1739676632042,-500.0,9.999e-05,2]
[353224731,1739676632051,-500.0,9.999e-05,2]
[353224733,1739676632061,-503.76767273,9.999e-05,2]
[353224735,1739676632070,-500.0,9.999e-05,2]
[353224737,1739676632079,-500.0,9.999e-05,2]
[353224739,1739676632089,-500.0,9.999e-05,2]
[353224741,1739676632099,-500.0,9.999e-05,2]
[353224744,1739676632108,-500.0,9.999e-05,2]
[353224745,1739676632120,-500.0,9.999e-05,2]
[353224748,1739676632129,-51777.37908153,0.0001,2]
[353224764,1739676637694,-432.78668435,0.0001,2]
[353224765,1739676637908,-6790.99900856,0.0001,2]
[353224805,1739676642739,-169613.60436347,0.0001,2]
[353224806,1739676642900,-2434.15,0.0001,2]
[353224929,1739677614967,748.08,8.219e-05,2]
[353224945,1739677831844,-264.38050012,8.851e-05,2]
[353224946,1739677831857,-312.71069988,8.851e-05,2]
[353224947,1739677831867,-252.84204402,9.15e-05,2]
[353224948,1739677831878,-273.52795598,9.15e-05,2]
[353224949,1739677831887,-405.14,9.231e-05,2]
[353224950,1739677831898,-150.0,9.316e-05,2]
[353224951,1739677831908,-300.0,9.319e-05,2]
[353224952,1739677831917,-1608.66696863,9.32e-05,2]
[353224953,1739677831929,-1587.35583697,9.32e-05,2]
[353224954,1739677831966,-3002.04649014,9.32e-05,2]
[353224955,1739677831978,-1257.00900009,9.32e-05,2]
[353224956,1739677831990,-1998.10131452,9.32e-05,2]
[353224957,1739677832013,-1933.82557355,9.32e-05,2]
[353224979,1739677832461,-295.63804909,9.32e-05,2]
[353224981,1739677832472,-12217.35676701,9.32e-05,2]
[353224983,1739677832481,-200.0,9.388e-05,2]
[353224985,1739677832490,-1500.0,9.391e-05,2]
[353224987,1739677832499,-500.0,9.562e-05,2]
[353224988,1739677832508,-150.0,9.699e-05,2]
[353224990,1739677832517,-1000.0,9.71e-05,2]
[353224992,1739677832527,-150.0,9.736e-05,2]
[353224994,1739677832542,-1572.059,9.8e-05,2]
[353224996,1739677832551,-154.51258609,9.838e-05,2]
[353224998,1739677832560,-1449.82,9.842e-05,2]
[353225000,1739677832570,-200.0,9.992e-05,2]
[353225002,1739677832579,-150.0,9.999e-05,2]
[353225004,1739677832588,-169895.00296292,0.0001,2]
[353225051,1739677837799,-3391.46814228,9.319e-05,2]
[353225052,1739677837814,-2881.23460355,9.319e-05,2]
[353225053,1739677837824,-2515.14445557,0.0001,2]
[353225055,1739677837835,-432.77290705,0.0001,2]
[353225056,1739677837859,-300.13968364,0.0001,2]
[353225057,1739677837871,-437.70943335,0.0001,2]
[353225058,1739677838072,-376.0213201,0.0001,2]
[353225059,1739677838084,-476.81295156,0.0001,2]
[353225061,1739677840131,-627.116643,0.0001,2]
[353225062,1739677840294,-616.4800411,0.0001,2]
[353225063,1739677840307,-131851.84004628,0.0001,2]
[353225179,1739677842951,-19666.89131743,0.0001,2]
[353225180,1739677842963,-68576.71071858,0.0001,2]
[353225181,1739677843003,-15013.66888655,0.0001,2]
[353225213,1739677845926,-196500.0,0.0001,2]
[353225214,1739677845937,-240500.0,0.0001,2]
[353225221,1739678276341,162.32,7.737e-05,2]
[353225222,1739678489026,3274.89653117,0.00020368,120]
[353225223,1739678517233,2778.31097872,0.00020368,120]
[353225224,1739678651167,710.67,8.219e-05,2]
[353225229,1739679031986,-464.2906,8.836e-05,2]
[353225230,1739679031996,-77.0544,9.056e-05,2]
[353225231,1739679032007,-122.9456,9.056e-05,2]
[353225232,1739679032018,-200.0,9.285e-05,2]
[353225233,1739679032029,-202.57,9.37e-05,2]
[353225234,1739679032039,-382.64,9.385e-05,2]
[353225235,1739679032049,-410.91,9.607e-05,2]
[353225236,1739679032059,-170.62857643,9.716e-05,2]
[353225237,1739679032068,-1000.0,9.716e-05,2]
[353225238,1739679032077,-200.0,9.719e-05,2]
[353225239,1739679032086,-234.39,9.73e-05,2]
[353225240,1739679032094,-1557.924,9.8e-05,2]
[353225241,1739679032104,-150.0,9.912e-05,2]
[353225242,1739679032114,-168.53,9.989e-05,2]
[353225243,1739679032125,-300.0,9.999e-05,2]
[353225244,1739679032135,-3354.39029689,0.0001,2]
[353225245,1739679032149,-1108.99788812,0.0001,2]
[353225246,1739679032163,-791.00211188,0.0001,2]
[353225247,1739679032175,-795.57,0.0001,2]
[353225248,1739679032214,-2685.33611944,0.0001,2]
[353225249,1739679032277,-5900.0,0.0001,2]
[353225775,1739679037924,-630.69068571,0.0001,2]
[353225777,1739679037937,-4087.13897112,0.0001,2]
[353225782,1739679037979,-6409.82392561,0.0001,2]
[353225784,1739679037990,-1814.03961151,0.0001,2]
[353225790,1739679038039,-3655.2800516,0.0001,2]
[353225793,1739679038050,-2863.18375192,0.0001,2]
[353225809,1739679038200,-1860.04352126,0.0001,2]
[353225811,1739679038212,-511.17103011,0.0001,2]
[353225827,1739679040051,-1216.87130668,0.0001,2]
[353225828,1739679040165,-9096.64373114,0.0001,2]
[353225829,1739679040176,-8947.21879473,0.0001,2]
[353225830,1739679040188,-8943.78386462,0.0001,2]
[353225831,1739679040199,-9077.54866152,0.0001,2]
[353225832,1739679040210,-8943.84023489,0.0001,2]
[353225833,1739679040222,-436.58306929,0.0001,2]
[353225834,1739679040241,-2403.82051316,0.0001,2]
[353225835,1739679040252,-404.02662496,0.0001,2]
[353225836,1739679040263,-389.98,0.0001,2]
[353225852,1739679046080,-5542.0080137,0.0001,2]
[353225853,1739679046187,-7633.10300727,0.0001,2]
[353225854,1739679046243,-1577.54450552,0.0001,2]
[353225855,1739679060520,1481.8316,8e-05,2]
[353225856,1739679068331,1481.8316,8e-05,2]
[353225857,1739679084251,1441.87302,8e-05,2]
[353225858,1739679089986,1441.87302,8e-05,2]
[353225859,1739679097946,1333.48403,8e-05,2]
[353225860,1739679104668,1333.48403,8e-05,2]
[353225861,1739679116633,1299.4679,8e-05,2]
[353225862,1739679121741,1299.4679,8e-05,2]
[353225863,1739679145603,877.65066,0.0002,120]
[353225864,1739679162608,877.65065,0.0002,120]
[353225865,1739679176587,877.65065,0.0002,120]
[353225866,1739679191948,612.73458,0.0002,120]
[353225867,1739679229702,2096.4956253,8e-05,2]
[353225868,1739679229729,20178.1643747,8e-05,2]
[353225869,1739679361152,203.0,0.0002,120]
[353225870,1739679515395,162.32,7.518e-05,2]
[353225871,1739679898113,754.07,8.219e-05,2]
[353225902,1739680232206,-150.0,8.835e-05,2]
[353225905,1739680232216,-200.0,8.835e-05,2]
[353225908,1739680232225,-404.11,8.836e-05,2]
[353225909,1739680232236,-605.2000001,8.836e-05,2]
[353225911,1739680232317,-3836.76602723,8.836e-05,2]
[353225912,1739680232328,-1478.34689998,8.836e-05,2]
[353225913,1739680232339,-2679.85253739,8.836e-05,2]
[353225914,1739680232429,-1549.68421478,8.836e-05,2]
[353225915,1739680232487,-10925.46582052,8.836e-05,2]
[353225916,1739680232496,-6405.9452,8.836e-05,2]
[353225917,1739680232505,-15388.1634,8.836e-05,2]
[353225918,1739680232515,-170.62857642,8.836e-05,2]
[353225919,1739680232524,-200.0,8.839e-05,2]
[353225920,1739680232534,-1223.3323,8.851e-05,2]
[353225921,1739680232544,-2773.0016,8.973e-05,2]
[353225922,1739680232554,-291.92,9.088e-05,2]
[353225923,1739680232563,-1821.29,9.164e-05,2]
[353225924,1739680232572,-500.0,9.562e-05,2]
[353225925,1739680232582,-1000.0,9.638e-05,2]
[353225926,1739680232591,-173.14,9.716e-05,2]
[353225927,1739680232601,-200.0,9.719e-05,2]
[353225929,1739680232610,-885.51,9.72e-05,2]
[353225931,1739680232619,-300.0,9.72e-05,2]
[353225933,1739680232628,-1054.0,9.8e-05,2]
[353225934,1739680232638,-239.36,9.9e-05,2]
[353225936,1739680232646,-370.24,9.9e-05,2]
[353225938,1739680232656,-885.16,9.9e-05,2]
[353225940,1739680232665,-150.0,9.912e-05,2]
[353225942,1739680232674,-150.0,9.912e-05,2]
[353225943,1739680232683,-502.0,9.973e-05,2]
[353225945,1739680232694,-166.55947911,9.973e-05,2]
[353225947,1739680232703,-8393.81195025,9.992e-05,2]
[353225952,1739680238123,-28178.96688687,9.992e-05,2]
[353225953,1739680238135,-778.83225868,9.992e-05,2]
[353225954,1739680238147,-52648.3889042,9.992e-05,2]
[353225955,1739680238157,-500.0,9.999e-05,2]
[353225956,1739680238166,-291.98258804,9.999e-05,2]
[353225957,1739680238176,-500.0,9.999e-05,2]
[353225958,1739680238186,-500.0,9.999e-05,2]
[353225959,1739680238195,-500.0,9.999e-05,2]
[353225960,1739680238205,-278.70121914,9.999e-05,2]
[353225961,1739680238216,-1659.8140566,0.0001,2]
[353225962,1739680238244,-1522.85,0.0001,2]
[353225963,1739680238255,-63072.10846767,0.0001,2]
[353225964,1739680238266,-321.1250003,0.0001,2]
[353225965,1739680238282,-305.38868645,0.0001,2]
[353225966,1739680238294,-20220.0,0.0001,2]
[353225967,1739680238326,-1454.3225435,0.0001,2]
[353225968,1739680238337,-916.34,0.0001,2]
[353226086,1739680241102,-226860.46440973,0.0001,2]
[353226147,1739680243245,-9013.94823078,0.0001,2]
[353226154,1739680243413,-67085.79536922,0.0001,2]
[353226155,1739680243462,-34113.64500216,0.0001,2]
[353226156,1739680243472,-41670.78318697,0.0001,2]
[353226157,1739680243482,-267065.42288016,0.0001,2]
[353226174,1739680246386,-467.96961399,0.0001,2]
[353226175,1739680246397,-17589.95647311,0.0001,2]
[353226176,1739680246408,-3492.72769269,0.0001,2]
[353226177,1739680246484,-846.836438,0.0001,2]
[353226178,1739680246495,-111412.04322544,0.0001,2]
[353226179,1739680246539,-610.11565628,0.0001,2]
[353226180,1739680628208,1255.09961198,0.00020374,120]
[353226181,1739680890196,162.32,7.702e-05,2]
[353226182,1739680924297,716.36,8.219e-05,2]
[353226185,1739681432440,-150.0,8.835e-05,2]
[353226186,1739681432450,-200.0,8.835e-05,2]
[353226187,1739681432460,-6761.4039,8.836e-05,2]
[353226188,1739681432469,-473.40232634,8.836e-05,2]
[353226189,1739681432495,-296.880003,8.836e-05,2]
[353226190,1739681432623,-4124.25961677,8.836e-05,2]
[353226191,1739681432635,-20738.06325389,8.836e-05,2]
[353226192,1739681432644,-4157.8567,8.836e-05,2]
[353226193,1739681432653,-5825.13156783,8.836e-05,2]
[353226194,1739681432693,-3849.25193217,8.836e-05,2]
[353226195,1739681432702,-17740.839,8.836e-05,2]
[353226196,1739681432711,-150.0,8.959e-05,2]
[353226197,1739681432720,-53499.2302,8.973e-05,2]
[353226198,1739681432729,-910.64,9.333e-05,2]
[353226199,1739681432738,-306.11,9.357e-05,2]
[353226200,1739681432747,-1449.82,9.627e-05,2]
[353226201,1739681432759,-1000.0,9.646e-05,2]
[353226202,1739681432769,-150.0,9.719e-05,2]
[353226203,1739681432778,-150.0,9.719e-05,2]
[353226205,1739681432787,-200.0,9.719e-05,2]
[353226206,1739681432796,-200.0,9.719e-05,2]
[353226207,1739681432806,-790.7,9.72e-05,2]
[353226208,1739681432815,-152.58,9.72e-05,2]
[353226209,1739681432824,-150.0,9.912e-05,2]
[353226210,1739681432834,-150.0,9.912e-05,2]
[353226211,1739681432844,-500.0,9.999e-05,2]
[353226212,1739681432857,-500.0,9.999e-05,2]
[353226213,1739681432866,-500.0,9.999e-05,2]
[353226214,1739681432876,-500.0,9.999e-05,2]
[353226215,1739681432885,-500.0,9.999e-05,2]
[353226216,1739681432895,-500.0,9.999e-05,2]
[353226217,1739681432904,-153.39090546,9.999e-05,2]
[353226218,1739681432913,-500.0,9.999e-05,2]
[353226219,1739681432922,-500.0,9.999e-05,2]
[353226220,1739681432931,-315.26818734,9.999e-05,2]
[353226221,1739681432940,-90331.62688533,0.0001,2]
[353226222,1739681432952,-32577.5768716,0.0001,2]
[353226223,1739681432963,-106488.60781554,0.0001,2]
[353226224,1739681438358,-9551.96517079,0.0001,2]
[353226225,1739681438371,-5462.24845647,0.0001,2]
[353226226,1739681438382,-8940.77294004,0.0001,2]
[353226227,1739681438394,-1572.82199258,0.0001,2]
[353226228,1739681438407,-1054.44218345,0.0001,2]
[353226229,1739681438425,-2017.25949954,0.0001,2]
[353226230,1739681438437,-6269.49777717,0.0001,2]
[353226231,1739681438523,-1059.09355,0.0001,2]
[353226348,1739681440402,-446.38965499,0.0001,2]
[353226349,1739681440515,-37617.98433565,0.0001,2]
[353226350,1739681440526,-642.97607776,0.0001,2]
[353226351,1739681440537,-3263.26017339,0.0001,2]
[353226352,1739681440627,-595.81984755,0.0001,2]
[353226353,1739681440639,-491.96152211,0.0001,2]
[353226354,1739681440684,-2222.62780469,0.0001,2]
[353226470,1739681443613,-1000.0004634,0.0001,2]
[353226471,1739681443662,-31728.27495823,0.0001,2]
[353226472,1739681443673,-8848.34865283,0.0001,2]
[353226473,1739681443684,-342849.85106929,0.0001,2]
[353226488,1739681446322,-87828.04775383,0.0001,2]
[353226489,1739681446332,-393.6899943,0.0001,2]
[353226490,1739681446341,-3503.82406,0.0001,2]
[353226491,1739681446351,-382.73144724,0.0001,2]
[353226492,1739681446361,-506.55,0.0001,2]
[353226493,1739681446370,-209.53266591,0.0001,2]
[353226494,1739681446380,-700.0,0.00010058,2]
[353226495,1739681446390,-500.0,0.00010058,2]
[353226496,1739681446400,-800.0,0.00010058,2]
[353226497,1739681446409,-150.0,0.00010096,2]
[353226498,1739681446418,-161.3,0.00010137,2]
[353226499,1739681446428,-493.17,0.00010137,2]
[353226500,1739681446437,-420.60711233,0.00010146,2]
[353226501,1739681446447,-3339.92673183,0.00010151,2]
[353226502,1739681446456,-291.92,0.00010224,2]
[353226503,1739681446466,-150.0,0.00010279,2]
[353226504,1739681446477,-599.2789637,0.00010384,2]
[353226505,1739681446486,-170.31339818,0.00010406,2]
[353226506,1739681446495,-599.2789637,0.00010438,2]
[353226507,1739681446505,-716.36,0.00010457,2]
[353226508,1739681446515,-150.0,0.00010463,2]
[353226509,1739681446524,-150.0,0.00010463,2]
[353226510,1739681446533,-599.2789637,0.00010466,2]
[353226511,1739681446543,-420.60711233,0.00010481,2]
[353226512,1739681446552,-599.2789637,0.00010521,2]
[353226513,1739681446562,-306.11,0.00010526,2]
[353226514,1739681446571,-599.2789637,0.00010575,2]
[353226515,1739681446581,-1274.0,0.00010591,2]
[353226516,1739681446590,-2026.0,0.00010591,2]
[353226517,1739681446599,-277.898,0.00010591,2]
[353226518,1739681446608,-639.878,0.00010591,2]
[353226519,1739681446617,-213.504,0.00010591,2]
[353226520,1739681446626,-588.502,0.00010591,2]
[353226521,1739681446636,-1788.187,0.00010591,2]
[353226522,1739681446645,-916.412,0.00010591,2]
[353226523,1739681446654,-1266.0,0.00010591,2]
[353226524,1739681446663,-2957.0,0.00010591,2]
[353226525,1739681446672,-784.0,0.00010591,2]
[353226526,1739681446681,-4060.156,0.00010591,2]
[353226527,1739681446690,-540.348,0.00010591,2]
[353226528,1739681446699,-1010.683,0.00010591,2]
[353226529,1739681446708,-150.871,0.00010591,2]
[353226530,1739681446717,-3917.0,0.00010591,2]
[353226531,1739681446726,-150.0,0.00010591,2]
[353226532,1739681446735,-1110.096,0.00010591,2]
[353226533,1739681446745,-599.2789637,0.0001063,2]